[Event "FIDE Grand Swiss 2023"]
[Site "Villa Marina, Douglas, Isle of Man"]
[Date "2023.10.30"]
[Round "6.51"]
[White "Henriquez Villagra, Cristobal"]
[Black "Kozak, Adam"]
[Result "1/2-1/2"]
[WhiteElo "2630"]
[BlackElo "2566"]
[EventDate "2023.10.25"]
[ECO "B52"]
[PlyCount "177"]
[BlackFideId "753246"]
[TimeControl "40/100 + 20/50 + 15 + 30s/move"]
[WhiteFideId "3409350"]

1.Nf3 {[%clk 01:40:56] [%emt 00:00:03]} 1...c5 {[%clk 01:40:14] [%emt 00:00:39]} 
2.e4 {[%clk 01:40:39] [%emt 00:00:54]} 2...d6 {[%clk 01:40:38] [%emt 00:00:07]} 
3.Bb5+ {[%clk 01:40:48] [%emt 00:00:20]} 3...Bd7 {[%clk 01:41:02] [%emt
00:00:06]} 4.c4 {[%clk 01:39:43] [%emt 00:01:36]} 4...Nc6 {[%clk 01:40:40] [%emt
00:00:51]} 5.Nc3 {[%clk 01:36:48] [%emt 00:03:24]} 5...Nf6 {[%clk 01:38:25]
[%emt 00:02:45]} 6.O-O {[%clk 01:35:09] [%emt 00:02:09]} 6...g6 {[%clk 01:37:33]
[%emt 00:01:24]} 7.d4 {[%clk 01:34:47] [%emt 00:00:51]} 7...cxd4 {[%clk
01:37:44] [%emt 00:00:19]} 8.Nxd4 {[%clk 01:35:08] [%emt 00:00:09]} 8...Bg7 
{[%clk 01:37:52] [%emt 00:00:22]} 9.Nxc6 {[%clk 01:33:56] [%emt 00:01:42]} 
9...bxc6 {[%clk 01:35:01] [%emt 00:03:21]} 10.Ba4 {[%clk 01:34:20] [%emt
00:00:06]} 10...O-O {[%clk 01:35:20] [%emt 00:00:12]} 11.Rb1 {[%clk 01:23:36]
[%emt 00:11:13]} 11...Ng4 {[%clk 01:24:46] [%emt 00:11:04]} 12.Ne2 {[%clk
00:53:11] [%emt 00:30:54]} 12...Rb8 {[%clk 01:16:34] [%emt 00:08:43]} 13.Bc2 
{[%clk 00:40:27] [%emt 00:13:13]} 13...Qa5 {[%clk 00:59:45] [%emt 00:17:19]} 
14.h3 {[%clk 00:39:34] [%emt 00:01:24]} 14...Ne5 {[%clk 00:55:10] [%emt
00:05:05]} 15.b3 {[%clk 00:35:55] [%emt 00:04:09]} 15...c5 {[%clk 00:49:38]
[%emt 00:06:02]} 16.a3 {[%clk 00:32:39] [%emt 00:03:46]} 16...Nc6 {[%clk
00:47:28] [%emt 00:02:40]} 17.f4 {[%clk 00:32:18] [%emt 00:00:51]} 17...Rb7 
{[%clk 00:37:16] [%emt 00:10:42]} 18.Kh1 {[%clk 00:30:22] [%emt 00:02:26]} 
18...Rfb8 {[%clk 00:30:45] [%emt 00:07:01]} 19.Qd3 {[%clk 00:27:53] [%emt
00:02:59]} 19...Be8 {[%clk 00:21:57] [%emt 00:09:19]} 20.h4 {[%clk 00:27:13]
[%emt 00:01:09]} 20...Qd8 {[%clk 00:18:08] [%emt 00:04:19]} 21.Bd2 {[%clk
00:25:32] [%emt 00:02:11]} 21...a5 {[%clk 00:15:03] [%emt 00:03:36]} 22.a4 
{[%clk 00:22:05] [%emt 00:03:56]} 22...e5 {[%clk 00:07:21] [%emt 00:08:11]} 
23.f5 {[%clk 00:14:48] [%emt 00:07:47]} 23...Qxh4+ {[%clk 00:06:56] [%emt
00:00:55]} 24.Kg1 {[%clk 00:15:14] [%emt 00:00:04]} 24...Nb4 {[%clk 00:05:05]
[%emt 00:02:22]} 25.Bxb4 {[%clk 00:15:09] [%emt 00:00:35]} 25...cxb4 {[%clk
00:05:31] [%emt 00:00:04]} 26.Rbd1 {[%clk 00:12:25] [%emt 00:03:13]} 26...Rb6 
{[%clk 00:03:23] [%emt 00:02:39]} 27.Qf3 {[%clk 00:12:17] [%emt 00:00:37]} 
27...Rc8 {[%clk 00:01:58] [%emt 00:01:56]} 28.g3 {[%clk 00:10:59] [%emt
00:01:48]} 28...Qg5 {[%clk 00:02:08] [%emt 00:00:20]} 29.Qf2 {[%clk 00:09:08]
[%emt 00:02:21]} 29...Ra6 {[%clk 00:02:06] [%emt 00:00:32]} 30.Rd5 {[%clk
00:08:40] [%emt 00:00:57]} 30...Bh6 {[%clk 00:01:21] [%emt 00:01:15]} 31.Rfd1 
{[%clk 00:08:36] [%emt 00:00:35]} 31...Bf8 {[%clk 00:01:38] [%emt 00:00:13]} 
32.Rf1 {[%clk 00:04:03] [%emt 00:05:03]} 32...Bh6 {[%clk 00:02:03] [%emt
00:00:06]} 33.Rfd1 {[%clk 00:03:09] [%emt 00:01:23]} 33...Bf8 {[%clk 00:02:28]
[%emt 00:00:05]} 34.Rf1 {[%clk 00:03:34] [%emt 00:00:05]} 34...Rc7 {[%clk
00:02:47] [%emt 00:00:12]} 35.Bd3 {[%clk 00:02:55] [%emt 00:01:08]} 35...Rc5 
{[%clk 00:02:02] [%emt 00:01:15]} 36.fxg6 {[%clk 00:02:37] [%emt 00:00:47]} 
36...Qxg6 {[%clk 00:00:34] [%emt 00:01:59]} 37.Bb1 {[%clk 00:01:05] [%emt
00:02:02]} 37...Bd7 {[%clk 00:00:33] [%emt 00:00:31]} 38.Nc1 {[%clk 00:00:50]
[%emt 00:00:45]} 38...Be6 {[%clk 00:00:34] [%emt 00:00:30]} 39.Nd3 {[%clk
00:00:37] [%emt 00:00:42]} 39...Rc8 {[%clk 00:00:32] [%emt 00:00:32]} 40.Rb5 
{[%clk 00:00:59] [%emt 00:00:08]} 40...h5 {[%clk 00:00:33] [%emt 00:00:30]} 
41.Kh2 {[%clk 00:50:02] [%emt 00:01:25]} 41...Be7 {[%clk 00:17:43] [%emt
00:33:21]} 42.Rb7 {[%clk 00:44:22] [%emt 00:06:09]} 42...Kf8 {[%clk 00:17:27]
[%emt 00:00:46]} 43.Ne1 {[%clk 00:41:19] [%emt 00:03:33]} 43...Rac6 {[%clk
00:13:08] [%emt 00:04:50]} 44.Ng2 {[%clk 00:28:58] [%emt 00:12:52]} 44...R6c7 
{[%clk 00:12:08] [%emt 00:01:30]} 45.Rxc7 {[%clk 00:27:34] [%emt 00:01:53]} 
45...Rxc7 {[%clk 00:12:33] [%emt 00:00:06]} 46.Ne3 {[%clk 00:27:57] [%emt
00:00:07]} 46...Qg5 {[%clk 00:09:48] [%emt 00:03:16]} 47.Nf5 {[%clk 00:16:28]
[%emt 00:11:58]} 47...Rc5 {[%clk 00:10:05] [%emt 00:00:13]} 48.Bd3 {[%clk
00:16:15] [%emt 00:00:42]} 48...Bxf5 {[%clk 00:05:36] [%emt 00:05:00]} 49.Qxf5 
{[%clk 00:16:15] [%emt 00:00:29]} 49...Qxf5 {[%clk 00:06:02] [%emt 00:00:04]} 
50.Rxf5 {[%clk 00:16:41] [%emt 00:00:04]} 50...h4 {[%clk 00:06:25] [%emt
00:00:08]} 51.Be2 {[%clk 00:15:54] [%emt 00:01:17]} 51...hxg3+ {[%clk 00:04:46]
[%emt 00:02:09]} 52.Kxg3 {[%clk 00:16:19] [%emt 00:00:04]} 52...Bd8 {[%clk
00:02:56] [%emt 00:02:21]} 53.Bh5 {[%clk 00:16:27] [%emt 00:00:21]} 53...Rc7 
{[%clk 00:03:15] [%emt 00:00:12]} 54.Bg4 {[%clk 00:15:02] [%emt 00:01:54]} 
54...Ra7 {[%clk 00:01:17] [%emt 00:02:29]} 55.Rh5 {[%clk 00:13:05] [%emt
00:02:26]} 55...Kg7 {[%clk 00:00:33] [%emt 00:01:15]} 56.Kf3 {[%clk 00:13:15]
[%emt 00:00:19]} 56...Ra8 {[%clk 00:00:32] [%emt 00:00:32]} 57.Rf5 {[%clk
00:06:04] [%emt 00:07:41]} 57...Bb6 {[%clk 00:00:32] [%emt 00:00:29]} 58.Rg5+ 
{[%clk 00:06:01] [%emt 00:00:34]} 58...Kf6 {[%clk 00:00:48] [%emt 00:00:14]} 
59.Rf5+ {[%clk 00:06:13] [%emt 00:00:17]} 59...Kg7 {[%clk 00:00:54] [%emt
00:00:25]} 60.Rg5+ {[%clk 00:06:37] [%emt 00:00:06]} 60...Kf6 {[%clk 00:01:20]
[%emt 00:00:03]} 61.Rf5+ {[%clk 00:07:03] [%emt 00:00:04]} 61...Ke7 {[%clk
00:01:44] [%emt 00:00:06]} 62.Rh5 {[%clk 00:07:27] [%emt 00:00:07]} 62...Rg8 
{[%clk 00:01:17] [%emt 00:00:56]} 63.Rh7 {[%clk 00:05:55] [%emt 00:02:02]} 
63...Bc5 {[%clk 00:14:43] [%emt 00:02:05]} 64.Rh5 {[%clk 00:20:52] [%emt
00:00:32]} 64...Bb6 {[%clk 00:12:26] [%emt 00:02:47]} 65.Rh7 {[%clk 00:21:13]
[%emt 00:00:09]} 65...Bd4 {[%clk 00:12:47] [%emt 00:00:10]} 66.Rh5 {[%clk
00:18:59] [%emt 00:02:44]} 66...Kd8 {[%clk 00:06:15] [%emt 00:07:02]} 67.Rh7 
{[%clk 00:17:39] [%emt 00:01:49]} 67...Rf8 {[%clk 00:06:38] [%emt 00:00:08]} 
68.Ke2 {[%clk 00:16:35] [%emt 00:01:33]} 68...Bb2 {[%clk 00:03:27] [%emt
00:03:42]} 69.Rh6 {[%clk 00:13:53] [%emt 00:03:12]} 69...Ke7 {[%clk 00:02:44]
[%emt 00:01:13]} 70.Rh7 {[%clk 00:14:07] [%emt 00:00:16]} 70...Bd4 {[%clk
00:02:31] [%emt 00:00:43]} 71.Kf3 {[%clk 00:14:24] [%emt 00:00:13]} 71...Bc5 
{[%clk 00:02:24] [%emt 00:00:37]} 72.Ke2 {[%clk 00:14:19] [%emt 00:00:34]} 
72...Ke8 {[%clk 00:00:40] [%emt 00:02:15]} 73.Bh5 {[%clk 00:14:22] [%emt
00:00:26]} 73...Ke7 {[%clk 00:00:57] [%emt 00:00:14]} 74.Bg4 {[%clk 00:14:48]
[%emt 00:00:04]} 74...Rg8 {[%clk 00:01:24] [%emt 00:00:03]} 75.Kf3 {[%clk
00:15:10] [%emt 00:00:08]} 75...Ke8 {[%clk 00:01:46] [%emt 00:00:07]} 76.Rh5 
{[%clk 00:12:51] [%emt 00:02:49]} 76...Kf8 {[%clk 00:00:58] [%emt 00:01:18]} 
77.Rh1 {[%clk 00:11:50] [%emt 00:01:30]} 77...Kg7 {[%clk 00:00:48] [%emt
00:00:41]} 78.Rh3 {[%clk 00:11:26] [%emt 00:00:54]} 78...Kg6 {[%clk 00:00:47]
[%emt 00:00:30]} 79.Bf5+ {[%clk 00:11:16] [%emt 00:00:41]} 79...Kf6 {[%clk
00:01:04] [%emt 00:00:14]} 80.Rg3 {[%clk 00:11:26] [%emt 00:00:19]} 80...Rh8 
{[%clk 00:00:44] [%emt 00:00:50]} 81.Rh3 {[%clk 00:11:51] [%emt 00:00:06]} 
81...Rg8 {[%clk 00:01:07] [%emt 00:00:07]} 82.Rg3 {[%clk 00:12:11] [%emt
00:00:08]} 82...Rf8 {[%clk 00:01:34] [%emt 00:00:04]} 83.Rh3 {[%clk 00:12:09]
[%emt 00:00:33]} 83...Ke7 {[%clk 00:01:42] [%emt 00:00:22]} 84.Rh7 {[%clk
00:12:30] [%emt 00:00:08]} 84...Kd8 {[%clk 00:01:50] [%emt 00:00:21]} 85.Bg4 
{[%clk 00:12:55] [%emt 00:00:06]} 85...Kc7 {[%clk 00:00:52] [%emt 00:01:29]} 
86.Be6 {[%clk 00:12:39] [%emt 00:00:45]} 86...Rg8 {[%clk 00:00:32] [%emt
00:00:50]} 87.Rxf7+ {[%clk 00:11:00] [%emt 00:02:10]} 87...Kb6 {[%clk 00:00:58]
[%emt 00:00:04]} 88.Rb7+ {[%clk 00:09:59] [%emt 00:01:30]} 88...Kxb7 {[%clk
00:01:23] [%emt 00:00:06]} 89.Bxg8 {[%clk 00:10:25] [%emt 00:00:03]} 1/2-1/2

[Event "FIDE Grand Swiss 2023"]
[Site "Villa Marina, Douglas, Isle of Man"]
[Date "2023.10.30"]
[Round "6.52"]
[White "Fawzy, Adham"]
[Black "Mendonca, Leon Luke"]
[Result "1/2-1/2"]
[WhiteElo "2535"]
[BlackElo "2622"]
[EventDate "2023.10.25"]
[ECO "C11"]
[PlyCount "61"]
[BlackFideId "35028561"]
[TimeControl "40/100 + 20/50 + 15 + 30s/move"]
[WhiteFideId "10613129"]

1.e4 {[%clk 01:40:47] [%emt 00:00:12]} 1...e6 {[%clk 01:40:32] [%emt 00:00:28]} 
2.d4 {[%clk 01:40:34] [%emt 00:00:44]} 2...d5 {[%clk 01:40:54] [%emt 00:00:07]} 
3.Nc3 {[%clk 01:40:57] [%emt 00:00:07]} 3...Nf6 {[%clk 01:40:59] [%emt
00:00:25]} 4.Bg5 {[%clk 01:40:29] [%emt 00:00:58]} 4...dxe4 {[%clk 01:41:09]
[%emt 00:00:20]} 5.Nxe4 {[%clk 01:40:14] [%emt 00:00:45]} 5...Nbd7 {[%clk
01:41:30] [%emt 00:00:09]} 6.Nf3 {[%clk 01:38:35] [%emt 00:02:09]} 6...h6 
{[%clk 01:41:40] [%emt 00:00:20]} 7.Nxf6+ {[%clk 01:34:56] [%emt 00:04:09]} 
7...Nxf6 {[%clk 01:42:01] [%emt 00:00:08]} 8.Be3 {[%clk 01:34:32] [%emt
00:00:54]} 8...Bd6 {[%clk 01:42:06] [%emt 00:00:26]} 9.Bd3 {[%clk 01:33:39]
[%emt 00:01:23]} 9...O-O {[%clk 01:42:10] [%emt 00:00:25]} 10.Qe2 {[%clk
01:31:20] [%emt 00:02:50]} 10...b6 {[%clk 01:41:59] [%emt 00:00:42]} 11.Rg1 
{[%clk 01:24:16] [%emt 00:07:33]} 11...Bb7 {[%clk 01:29:27] [%emt 00:13:02]} 
12.g4 {[%clk 01:21:28] [%emt 00:03:18]} 12...Nd5 {[%clk 01:22:22] [%emt
00:07:35]} 13.g5 {[%clk 01:08:21] [%emt 00:13:37]} 13...Nf4 {[%clk 01:04:52]
[%emt 00:18:00]} 14.Bxf4 {[%clk 00:48:01] [%emt 00:20:50]} 14...Bxf4 {[%clk
01:04:53] [%emt 00:00:29]} 15.c3 {[%clk 00:45:44] [%emt 00:02:47]} 15...Bxf3 
{[%clk 00:34:24] [%emt 00:30:58]} 16.Qxf3 {[%clk 00:44:53] [%emt 00:01:22]} 
16...Bxg5 {[%clk 00:23:27] [%emt 00:11:27]} 17.Qe4 {[%clk 00:42:12] [%emt
00:03:11]} 17...Re8 {[%clk 00:13:27] [%emt 00:10:31]} 18.Qh7+ {[%clk 00:32:57]
[%emt 00:09:44]} 18...Kf8 {[%clk 00:13:56] [%emt 00:00:01]} 19.h4 {[%clk
00:32:15] [%emt 00:01:12]} 19...Bxh4 {[%clk 00:10:23] [%emt 00:04:02]} 20.Qxg7+ 
{[%clk 00:22:24] [%emt 00:10:22]} 20...Ke7 {[%clk 00:10:53]} 21.Qxh6 {[%clk
00:18:05] [%emt 00:04:49]} 21...Rh8 {[%clk 00:11:05] [%emt 00:00:18]} 22.Qe3 
{[%clk 00:18:18] [%emt 00:00:16]} 22...Qd6 {[%clk 00:11:33] [%emt 00:00:03]} 
23.O-O-O {[%clk 00:18:10] [%emt 00:00:38]} 23...Rag8 {[%clk 00:10:43] [%emt
00:01:20]} 24.f4 {[%clk 00:18:12] [%emt 00:00:27]} 24...Rxg1 {[%clk 00:10:15]
[%emt 00:00:58]} 25.Rxg1 {[%clk 00:18:11] [%emt 00:00:29]} 25...c5 {[%clk
00:09:02] [%emt 00:01:44]} 26.dxc5 {[%clk 00:13:28] [%emt 00:05:13]} 26...Qxc5 
{[%clk 00:08:49] [%emt 00:00:44]} 27.Qxc5+ {[%clk 00:13:56] [%emt 00:00:02]} 
27...bxc5 {[%clk 00:09:18] [%emt 00:00:01]} 28.Rh1 {[%clk 00:14:05] [%emt
00:00:21]} 28...Bf6 {[%clk 00:09:07] [%emt 00:00:40]} 29.Rxh8 {[%clk 00:14:33]
[%emt 00:00:02]} 29...Bxh8 {[%clk 00:09:32] [%emt 00:00:05]} 30.f5 {[%clk
00:13:12] [%emt 00:01:52]} 30...exf5 {[%clk 00:09:51] [%emt 00:00:11]} 31.Bxf5 
{[%clk 00:13:40] [%emt 00:00:02]} 1/2-1/2

[Event "FIDE Grand Swiss 2023"]
[Site "Villa Marina, Douglas, Isle of Man"]
[Date "2023.10.30"]
[Round "6.53"]
[White "Adhiban, B."]
[Black "Iturrizaga Bonelli, Eduardo"]
[Result "1-0"]
[WhiteElo "2551"]
[BlackElo "2615"]
[EventDate "2023.10.25"]
[ECO "B42"]
[PlyCount "111"]
[BlackFideId "3901211"]
[TimeControl "40/100 + 20/50 + 15 + 30s/move"]
[WhiteFideId "5018471"]

1.e4 {[%clk 01:40:53] [%emt 00:00:07]} 1...c5 {[%clk 01:40:55] [%emt 00:00:06]} 
2.Nf3 {[%clk 01:41:17] [%emt 00:00:06]} 2...e6 {[%clk 01:41:19] [%emt 00:00:06]} 
3.d4 {[%clk 01:41:41] [%emt 00:00:06]} 3...cxd4 {[%clk 01:41:41] [%emt
00:00:08]} 4.Nxd4 {[%clk 01:42:09] [%emt 00:00:02]} 4...a6 {[%clk 01:42:06]
[%emt 00:00:05]} 5.Bd3 {[%clk 01:42:23] [%emt 00:00:16]} 5...Bc5 {[%clk
01:42:29] [%emt 00:00:07]} 6.Nb3 {[%clk 01:42:41] [%emt 00:00:13]} 6...Be7 
{[%clk 01:42:52] [%emt 00:00:06]} 7.Nc3 {[%clk 01:39:36] [%emt 00:03:35]} 
7...d6 {[%clk 01:43:15] [%emt 00:00:06]} 8.Qe2 {[%clk 01:39:14] [%emt 00:00:52]} 
8...Nf6 {[%clk 01:43:23] [%emt 00:00:22]} 9.f4 {[%clk 01:31:38] [%emt 00:08:07]} 
9...Nc6 {[%clk 01:41:10] [%emt 00:02:42]} 10.Be3 {[%clk 01:30:50] [%emt
00:01:18]} 10...b5 {[%clk 01:39:26] [%emt 00:02:14]} 11.O-O-O {[%clk 01:25:36]
[%emt 00:05:44]} 11...Qc7 {[%clk 01:30:15] [%emt 00:09:41]} 12.Kb1 {[%clk
01:25:25] [%emt 00:00:42]} 12...Rb8 {[%clk 01:21:38] [%emt 00:09:07]} 13.g4 
{[%clk 01:22:40] [%emt 00:03:15]} 13...h6 {[%clk 01:20:13] [%emt 00:01:55]} 
14.h4 {[%clk 01:19:01] [%emt 00:04:09]} 14...h5 {[%clk 01:15:50] [%emt
00:04:52]} 15.g5 {[%clk 01:15:57] [%emt 00:03:34]} 15...Ng4 {[%clk 01:14:09]
[%emt 00:02:11]} 16.g6 {[%clk 01:13:06] [%emt 00:03:22]} 16...b4 {[%clk
01:05:23] [%emt 00:09:16]} 17.gxf7+ {[%clk 01:11:00] [%emt 00:02:35]} 17...Kf8 
{[%clk 00:57:45] [%emt 00:08:08]} 18.Na4 {[%clk 01:11:11] [%emt 00:00:20]} 
18...e5 {[%clk 00:50:12] [%emt 00:08:03]} 19.Bc4 {[%clk 00:58:01] [%emt
00:13:40]} 19...Bd7 {[%clk 00:45:39] [%emt 00:05:03]} 20.Nac5 {[%clk 00:45:56]
[%emt 00:12:35]} 20...dxc5 {[%clk 00:44:04] [%emt 00:02:04]} 21.Rxd7 {[%clk
00:45:38] [%emt 00:00:49]} 21...Qxd7 {[%clk 00:44:26] [%emt 00:00:07]} 22.Nxc5 
{[%clk 00:46:00] [%emt 00:00:09]} 22...Bxc5 {[%clk 00:32:38] [%emt 00:12:18]} 
23.Bxc5+ {[%clk 00:46:26] [%emt 00:00:04]} 23...Ne7 {[%emt 00:00:13]} 24.Rd1 
{[%clk 00:46:47]} 24...Qc6 {[%clk 00:33:07] [%emt 00:00:27]} 25.Qd3 {[%clk
00:39:23] [%emt 00:07:53]} 25...g5 {[%clk 00:32:51] [%emt 00:00:46]} 26.Qd8+ 
{[%clk 00:38:36] [%emt 00:01:18]} 26...Rxd8 {[%clk 00:33:07] [%emt 00:00:14]} 
27.Rxd8+ {[%clk 00:39:02] [%emt 00:00:03]} 27...Kg7 {[%clk 00:33:34] [%emt
00:00:03]} 28.Rxh8 {[%clk 00:39:22] [%emt 00:00:11]} 28...Ng6 {[%clk 00:34:02]
[%emt 00:00:02]} 29.Rg8+ {[%clk 00:39:17] [%emt 00:00:34]} 29...Kh7 {[%clk
00:34:30] [%emt 00:00:02]} 30.f5 {[%clk 00:23:36] [%emt 00:16:11]} 30...Nf8 
{[%clk 00:34:54] [%emt 00:00:06]} 31.Bxf8 {[%clk 00:22:28] [%emt 00:01:38]} 
31...Qxc4 {[%clk 00:35:09] [%emt 00:00:16]} 32.Rg7+ {[%clk 00:22:48] [%emt
00:00:10]} 32...Kh8 {[%clk 00:35:35] [%emt 00:00:03]} 33.Rg8+ {[%clk 00:22:12]
[%emt 00:01:07]} 33...Kh7 {[%clk 00:35:52] [%emt 00:00:13]} 34.Rg7+ {[%clk
00:22:39] [%emt 00:00:03]} 34...Kh8 {[%clk 00:36:13] [%emt 00:00:09]} 35.b3 
{[%clk 00:19:41] [%emt 00:03:28]} 35...Qf1+ {[%clk 00:14:22] [%emt 00:22:21]} 
36.Kb2 {[%clk 00:20:07] [%emt 00:00:04]} 36...Qe1 {[%clk 00:14:48] [%emt
00:00:03]} 37.Rg8+ {[%clk 00:20:07] [%emt 00:00:30]} 37...Kh7 {[%clk 00:15:01]
[%emt 00:00:17]} 38.Rg7+ {[%clk 00:18:47] [%emt 00:01:50]} 38...Kh8 {[%clk
00:15:10] [%emt 00:00:21]} 39.Bxb4 {[%clk 00:13:20] [%emt 00:05:58]} 39...Qxb4 
{[%clk 00:14:33] [%emt 00:01:06]} 40.Rg8+ {[%clk 00:13:39] [%emt 00:00:11]} 
40...Kh7 {[%clk 00:15:00] [%emt 00:00:02]} 41.f8=Q {[%clk 00:49:30] [%emt
00:14:40]} 41...Qxf8 {[%clk 01:05:05] [%emt 00:00:26]} 42.Rxf8 {[%clk 00:49:58]
[%emt 00:00:01]} 42...gxh4 {[%clk 01:05:29] [%emt 00:00:07]} 43.f6 {[%clk
00:44:04] [%emt 00:06:24]} 43...Kg6 {[%clk 00:59:51] [%emt 00:06:07]} 44.f7 
{[%clk 00:43:26] [%emt 00:01:08]} 44...Nf6 {[%clk 00:59:52] [%emt 00:00:29]} 
45.c4 {[%clk 00:37:24] [%emt 00:06:33]} 45...h3 {[%clk 00:54:24] [%emt
00:05:58]} 46.Rg8+ {[%clk 00:36:41] [%emt 00:01:13]} 46...Kxf7 {[%clk 00:54:05]
[%emt 00:00:48]} 47.Rg3 {[%clk 00:37:05] [%emt 00:00:05]} 47...Nxe4 {[%clk
00:54:13] [%emt 00:00:23]} 48.Rxh3 {[%clk 00:37:32] [%emt 00:00:03]} 48...Kg6 
{[%clk 00:54:39] [%emt 00:00:04]} 49.b4 {[%clk 00:37:22] [%emt 00:00:40]} 
49...Kg5 {[%clk 00:54:51] [%emt 00:00:18]} 50.c5 {[%clk 00:36:04] [%emt
00:01:48]} 50...h4 {[%clk 00:55:17] [%emt 00:00:04]} 51.Re3 {[%clk 00:34:50]
[%emt 00:01:45]} 51...Kf4 {[%clk 00:55:17] [%emt 00:00:30]} 52.Rxe4+ {[%clk
00:35:02] [%emt 00:00:18]} 52...Kxe4 {[%clk 00:55:41] [%emt 00:00:05]} 53.c6 
{[%clk 00:35:31] [%emt 00:00:02]} 53...h3 {[%clk 00:56:07] [%emt 00:00:04]} 
54.c7 {[%clk 00:35:58] [%emt 00:00:03]} 54...h2 {[%clk 00:56:34] [%emt
00:00:02]} 55.c8=Q {[%clk 00:36:24] [%emt 00:00:05]} 55...h1=Q {[%clk 00:56:59]
[%emt 00:00:04]} 56.Qc6+ {[%clk 00:36:51] [%emt 00:00:03]} 1-0